fUST/lending_fUST_20240118
["ID","MTS","AMOUNT","RATE_DAILY","PERIOD"]
[312009444,1705545040621,-5488.92,0.00030999,2]
[312009446,1705545040630,-5488.92,0.00030999,2]
[312009448,1705545040640,-5488.92,0.00030999,2]
[312009450,1705545040649,-5488.92,0.00030999,2]
[312009452,1705545040659,-5488.92,0.00030999,2]
[312009454,1705545040669,-5488.92,0.00030999,2]
[312009456,1705545040678,-5488.92,0.00030999,2]
[312009458,1705545040688,-5488.92,0.00030999,2]
[312009459,1705545040697,-5488.92,0.00030999,2]
[312009460,1705545040708,-5488.92,0.00030999,2]
[312009461,1705545040720,-97008.73081987,0.00031,4]
[312009462,1705545040730,-1500.0,0.00031,2]
[312009464,1705545040740,-153.23014305,0.00031067,7]
[312009466,1705545040750,-151.0,0.00031166,2]
[312009468,1705545040759,-153.23014305,0.00031413,7]
[312009470,1705545040768,-231.9716211,0.00031499,7]
[312009472,1705545040777,-1467.11943554,0.000315,45]
[312009473,1705545040786,-396.113715,0.00031526,2]
[312009475,1705545040795,-575.105045,0.00031526,2]
[312009476,1705545040806,-153.23014305,0.00031643,7]
[312009477,1705545040815,-153.23014305,0.00031654,7]
[312009478,1705545040825,-190.142785,0.000317,4]
[312009479,1705545040834,-11226.75463028,0.00031715,7]
[312009480,1705545040844,-200.0,0.00031774,15]
[312009481,1705545040853,-200.0,0.00031774,15]
[312009482,1705545040862,-200.0,0.00031774,15]
[312009483,1705545040871,-200.0,0.00031774,15]
[312009484,1705545040880,-275.0,0.00031774,15]
[312009485,1705545040889,-7771.85635811,0.00031899,4]
[312009486,1705545040900,-150.0,0.000319,4]
[312009487,1705545040909,-500.0,0.00031915,2]
[312009488,1705545040919,-500.0,0.00031915,2]
[312009489,1705545040928,-500.0,0.00031915,2]
[312009490,1705545040938,-500.0,0.00031915,2]
[312009491,1705545040947,-500.0,0.00031915,2]
[312009492,1705545040956,-14986.04672489,0.00031915,7]
[312009494,1705545040965,-556.19470539,0.00031915,7]
[312009496,1705545040975,-2780.97352693,0.00031915,7]
[312009497,1705545040985,-38688.33342602,0.00031915,7]
[312009498,1705545040995,-7737.6666852,0.00031915,7]
[312009499,1705545041005,-2276.92406698,0.00031915,7]
[312009500,1705545041015,-421.79354719,0.00031915,7]
[312009501,1705545041024,-503.86899309,0.00031915,7]
[312009502,1705545041034,-242.44229693,0.00031915,7]
[312009503,1705545041043,-5000.0,0.00031915,7]
[312009504,1705545041052,-61250.0,0.00031915,7]
[312009505,1705545041061,-50000.0,0.00031915,7]
[312009506,1705545041071,-181.8317227,0.00031915,7]
[312009507,1705545041081,-163.64855043,0.00031915,7]
[312009508,1705545041091,-154.9690062,0.00031915,2]
[312009509,1705545041101,-4459.3054765,0.00031915,4]
[312009510,1705545041110,-300.0,0.00031915,4]
[312009511,1705545041119,-410.41281499,0.00031915,2]
[312009512,1705545041128,-154.9690062,0.00031915,4]
[312009513,1705545041137,-650.89335401,0.00031915,4]
[312009514,1705545041147,-195.1690538,0.00031915,4]
[312009515,1705545041156,-351.14579978,0.00031915,2]
[312009516,1705545041166,-200.0,0.00031915,2]
[312009517,1705545041175,-2798.27961975,0.00031915,4]
[312009518,1705545041184,-3502.19720648,0.00031915,2]
[312009519,1705545041193,-283.01176432,0.00031915,3]
[312009520,1705545041202,-50000.0,0.00031915,7]
[312009521,1705545041212,-2403.23686805,0.00031915,7]
[312009522,1705545041222,-480.64737361,0.00031915,7]
[312009523,1705545041231,-4493.10958053,0.00031915,7]
[312009524,1705545041241,-22465.54790267,0.00031915,7]
[312009525,1705545041251,-208.33763806,0.00031915,7]
[312009526,1705545041260,-5000.0,0.00031915,7]
[312009527,1705545041270,-50000.0,0.00031915,7]
[312009528,1705545041279,-764.23929942,0.00031915,7]
[312009529,1705545041289,-1497.11490959,0.00031915,7]
[312009530,1705545041298,-224.56723644,0.00031915,7]
[312009531,1705545041307,-1280.03324769,0.00031915,7]
[312009532,1705545041316,-151.0,0.00031915,2]
[312009533,1705545041326,-151.0,0.00031915,2]
[312009534,1705545041336,-468.712246,0.00031915,2]
[312009535,1705545041346,-468.712246,0.00031915,2]
[312009536,1705545041357,-152.118286,0.00031915,2]
[312009537,1705545041366,-153.756851,0.00031915,2]
[312009538,1705545041376,-300.0,0.0003195,2]
[312009539,1705545041385,-153.23014305,0.00031957,7]
[312009540,1705545041395,-153.52997654,0.00031976,2]
[312009541,1705545041404,-6367.93900444,0.00032,4]
[312009542,1705545041414,-582.46443216,0.00032,4]
[312009543,1705545041424,-106736.71234689,0.00032,15]
[312009544,1705545041433,-201880.41666761,0.00032,8]
[312009545,1705545041443,-1000.0,0.00032,32]
[312009546,1705545041453,-150.0,0.00032,4]
[312009547,1705545041462,-115437.63521368,0.00032,15]
[312009548,1705545041472,-3133.37588219,0.00032,2]
[312009549,1705545041481,-150.0,0.00032,3]
[312009550,1705545041491,-151.0,0.00032,2]
[312009551,1705545041500,-502.016768,0.00032,3]
[312009552,1705545041510,-151.0,0.00032,2]
[312009553,1705545041519,-468.712246,0.00032,2]
[312009554,1705545041529,-1500.0,0.00032,2]
[312009555,1705545041538,-468.712246,0.00032,2]
[312009556,1705545041548,-200.0,0.00032,4]
[312009557,1705545041557,-163.898293,0.00032,2]
[312009558,1705545041567,-245.009401,0.00032,5]
[312009559,1705545041577,-245.009401,0.00032,5]
[312009560,1705545041587,-245.009401,0.00032,5]
[312009561,1705545041597,-379.58408484,0.00032,30]
[312009562,1705545041608,-619.99999999,0.0003201,2]
[312009563,1705545041618,-151.0,0.00032086,2]
[312009564,1705545041628,-620.0004677,0.00032089,2]
[312009565,1705545041638,-153.23014305,0.00032096,7]
[312009566,1705545041648,-153.23014305,0.00032217,7]
[312009567,1705545041657,-150.0,0.00032317,2]
[312009568,1705545041667,-152.951786,0.0003233,2]
[312009569,1705545041678,-150.084162,0.0003233,2]
[312009570,1705545041687,-152.951786,0.0003233,2]
[312009571,1705545041696,-150.084162,0.0003233,2]
[312009572,1705545041772,-154.81467579,0.00032391,7]
[312009573,1705545041781,-396.113715,0.00032446,2]
[312009574,1705545041790,-575.105045,0.00032446,2]
[312009575,1705545041800,-153.23014305,0.0003245,7]
[312009576,1705545041810,-477716.58284455,0.000325,20]
[312009577,1705545041908,-5520.40793407,0.000325,20]
[312009676,1705545043669,-164.53558271,0.00018791,2]
[312009678,1705545043678,-154.9690062,0.00018791,2]
[312009680,1705545043687,-180.49541109,0.00023288,2]
[312009832,1705545045844,-154.9690062,0.00023287,2]
[312009833,1705545045853,-98.9860637,0.00023287,2]
[312009838,1705545669235,7779.0331199,0.00017829,2]
[312009839,1705545707816,24900.0,0.00017831,2]
[312009840,1705545752607,510.89021638,0.00017829,2]
[312009841,1705545766728,304.9651772,0.00017829,2]
[312009843,1705545931493,315.411734,0.00017821,2]
[312009845,1705546206753,24900.0,0.00017734,2]
[312009922,1705546232286,-1265.64175415,0.000187,2]
[312009925,1705546232295,-521.75377805,0.00018701,2]
[312009926,1705546232304,-191.28367071,0.00018701,2]
[312009928,1705546232314,-902.97118459,0.00018702,2]
[312009930,1705546232323,-7954.79361021,0.00018702,2]
[312009932,1705546232332,-81157.58352198,0.00018702,2]
[312009934,1705546232341,-20860.81062343,0.00018703,2]
[312009936,1705546232351,-1473.30509391,0.00018712,2]
[312009938,1705546232360,-185.27753363,0.00018713,2]
[312009940,1705546232369,-1000.0,0.00018808,3]
[312009941,1705546232379,-1000.0,0.00018808,3]
[312009943,1705546232388,-1000.0,0.00018808,3]
[312009945,1705546232397,-1000.0,0.00018808,3]
[312009946,1705546232406,-1000.0,0.00018808,3]
[312009948,1705546232415,-1000.0,0.00018808,3]
[312009949,1705546232424,-1000.0,0.00018808,3]
[312009950,1705546232433,-959.33857973,0.00018808,3]
[312009983,1705546237949,-10525.87251245,0.00018701,2]
[312009985,1705546237958,-40.66142027,0.00018808,3]
[312009987,1705546237967,-1024.33788505,0.00018808,3]
[312009989,1705546237976,-154.9690062,0.0001883,2]
[312009991,1705546237986,-584.60932881,0.00018833,2]
[312009993,1705546237995,-154.9690062,0.00018837,2]
[312009995,1705546238004,-27291.05434916,0.00018839,2]
[312009997,1705546238013,-470.34681749,0.00018845,2]
[312009999,1705546238022,-2101.67947703,0.00018845,2]
[312010001,1705546238031,-521.29319614,0.00018845,2]
[312010003,1705546238040,-2072.13666013,0.00018845,2]
[312010005,1705546238049,-154.9690062,0.0001885,3]
[312010007,1705546238059,-688.82709207,0.000189,2]
[312010009,1705546238073,-1581.11940922,0.00019,2]
[312010011,1705546238082,-174.18605,0.00019178,2]
[312010013,1705546238090,-167.925875,0.00019481,2]
[312010015,1705546238100,-1113.73927963,0.000195,2]
[312010017,1705546238110,-200.0,0.00019636,2]
[312010019,1705546238119,-506.7596412,0.00019721,2]
[312010021,1705546238128,-169.223299,0.00019821,2]
[312010023,1705546238137,-154.9690062,0.0002,2]
[312010025,1705546238148,-154.9690062,0.0002,2]
[312010027,1705546238159,-238.02437486,0.0002,2]
[312010029,1705546238168,-2995.72102978,0.0002,2]
[312010031,1705546238177,-154.9690062,0.0002,2]
[312010033,1705546238186,-1196.96135251,0.0002,2]
[312010035,1705546238195,-849.59512114,0.0002,2]
[312010037,1705546238205,-678.05962952,0.0002,2]
[312010039,1705546238214,-1815.75822214,0.00021,2]
[312010041,1705546238223,-327.24959811,0.00021,2]
[312010043,1705546238232,-1000.0,0.000211,3]
[312010045,1705546238241,-506.75964119,0.00021336,2]
[312010047,1705546238250,-280.0,0.000216,7]
[312010049,1705546238259,-166.666666,0.00021918,2]
[312010051,1705546238268,-2032.26293116,0.00021999,2]
[312010053,1705546238277,-1167.08116397,0.00021999,2]
[312010055,1705546238286,-293.23530462,0.00022,4]
[312010057,1705546238295,-3959.1053351,0.00022,2]
[312010059,1705546238304,-425.62034809,0.00022,2]
[312010061,1705546238313,-155.15540084,0.00022,2]
[312010063,1705546238322,-9112.94247828,0.00022123,2]
[312010065,1705546238331,-166.666666,0.00022431,2]
[312010067,1705546238340,-166.666666,0.00022944,2]
[312010069,1705546238349,-506.75964119,0.00022952,2]
[312010071,1705546238358,-157.39586297,0.00023283,2]
[312010073,1705546238367,-158.26314997,0.00023283,2]
[312010075,1705546238376,-156.56329033,0.00023283,2]
[312010077,1705546238385,-155.31078673,0.00023283,2]
[312010079,1705546238394,-580.86831652,0.00023283,2]
[312010081,1705546238403,-5412.35449693,0.00023284,2]
[312010083,1705546238413,-882.3712381,0.00023285,2]
[312010085,1705546238422,-12678.79846726,0.00023285,2]
[312010087,1705546238431,-18998.63055035,0.00023285,2]
[312010090,1705546238441,-623.31605291,0.00023285,2]
[312010091,1705546238450,-2044.90523918,0.00023285,2]
[312010093,1705546238463,-244.34815903,0.00023286,2]
[312010095,1705546238473,-161.50700121,0.00023286,2]
[312010098,1705546238483,-361.52163179,0.00023286,2]
[312010099,1705546238493,-212.35941677,0.00023286,2]
[312010101,1705546238504,-155.54708111,0.00023286,2]
[312010103,1705546238513,-756.30093957,0.00023286,2]
[312010106,1705546238525,-154.98450155,0.00023286,2]
[312010107,1705546238534,-842.88919375,0.00023286,2]
[312010109,1705546238545,-156.15330816,0.00023286,2]
[312010111,1705546238554,-72.19856098,0.00023287,2]
[312010113,1705546238564,-166.26858299,0.00023287,2]
[312010115,1705546238572,-5244.47784366,0.00023287,2]
[312010118,1705546238584,-200.0,0.00023287,2]
[312010119,1705546238594,-3502.19720648,0.00023287,2]
[312010121,1705546238605,-154.9690062,0.00023287,2]
[312010124,1705546238615,-300.0,0.00023287,2]
[312010125,1705546238627,-2082.71954556,0.00023287,2]
[312010128,1705546238637,-155.07355916,0.00023288,2]
[312010130,1705546238646,-166.666666,0.00023456,2]
[312010131,1705546238655,-391.0,0.00023759,7]
[312010133,1705546238664,-166.666666,0.00023969,2]
[312010135,1705546238673,-1570.12942806,0.00024,2]
[312010137,1705546238683,-4010.78536694,0.00024,2]
[312010139,1705546238693,-2000.0,0.000243,2]
[312010141,1705546238702,-2000.0,0.000243,2]
[312010143,1705546238711,-2000.0,0.0002431,2]
[312010145,1705546238721,-2000.0,0.0002431,2]
[312010147,1705546238730,-2000.0,0.0002432,2]
[312010149,1705546238739,-2000.0,0.0002432,2]
[312010151,1705546238749,-2000.0,0.0002433,2]
[312010153,1705546238758,-2000.0,0.0002433,2]
[312010155,1705546238767,-2000.0,0.0002434,2]
[312010157,1705546238777,-2000.0,0.0002434,2]
[312010159,1705546238786,-2000.0,0.0002435,2]
[312010161,1705546238795,-2000.0,0.0002435,2]
[312010163,1705546238804,-2000.0,0.0002436,2]
[312010165,1705546238813,-2000.0,0.0002436,2]
[312010167,1705546238823,-2000.0,0.0002437,2]
[312010169,1705546238832,-2000.0,0.0002437,2]
[312010171,1705546238841,-2000.0,0.0002438,2]
[312010173,1705546238854,-2000.0,0.0002438,2]
[312010175,1705546238863,-2000.0,0.0002439,2]
[312010177,1705546238872,-2000.0,0.0002439,2]
[312010179,1705546238881,-2000.0,0.000244,2]
[312010181,1705546238890,-2000.0,0.000244,2]
[312010183,1705546238899,-2000.0,0.0002441,2]
[312010185,1705546238909,-2000.0,0.0002441,2]
[312010186,1705546238918,-2000.0,0.0002442,2]
[312010188,1705546238927,-2000.0,0.0002442,2]
[312010190,1705546238937,-2000.0,0.0002443,2]
[312010192,1705546238946,-2000.0,0.0002443,2]
[312010195,1705546238955,-2000.0,0.0002444,2]
[312010196,1705546238966,-2000.0,0.0002444,2]
[312010198,1705546238975,-2000.0,0.0002445,2]
[312010200,1705546238983,-2000.0,0.0002445,2]
[312010202,1705546238993,-2000.0,0.0002446,2]
[312010204,1705546239002,-2000.0,0.0002446,2]
[312010207,1705546239011,-2000.0,0.0002447,2]
[312010208,1705546239020,-2000.0,0.0002447,2]
[312010210,1705546239030,-2000.0,0.0002448,2]
[312010212,1705546239040,-2000.0,0.0002448,2]
[312010214,1705546239050,-166.666666,0.00024482,2]
[312010215,1705546239059,-2000.0,0.0002449,2]
[312010216,1705546239071,-2844.251759,0.0002449,2]
[312010217,1705546239080,-2000.0,0.000245,2]
[312010218,1705546239089,-2000.0,0.0002451,2]
[312010220,1705546239100,-2000.0,0.0002452,2]
[312010222,1705546239110,-2000.0,0.0002453,2]
[312010224,1705546239119,-2000.0,0.0002454,2]
[312010226,1705546239129,-2000.0,0.0002455,2]
[312010228,1705546239138,-2000.0,0.0002456,2]
[312010230,1705546239148,-506.75964119,0.00024567,2]
[312010232,1705546239158,-3762.444403,0.0002457,2]
[312010234,1705546239166,-200.0,0.00024658,2]
[312010236,1705546239175,-497.89805688,0.0002495,5]
[312010238,1705546239184,-683.41671788,0.00025,2]
[312010240,1705546239193,-1045.45812768,0.00025,2]
[312010242,1705546239202,-274.5510469,0.00025,2]
[312010244,1705546239211,-3000.0,0.00025,2]
[312010246,1705546239220,-4718.82684458,0.00025,2]
[312010248,1705546239229,-258.44452491,0.00025,2]
[312010250,1705546239239,-294.64825726,0.00025,2]
[312010252,1705546239248,-526.29712741,0.00026,2]
[312010254,1705546239257,-95555.53173644,0.00026022,2]
[312010256,1705546239266,-50000.0,0.0002609,2]
[312010258,1705546239276,-500.0,0.00026121,2]
[312010260,1705546239286,-500.0,0.00026121,2]
[312010262,1705546239295,-500.0,0.00026121,2]
[312010264,1705546239305,-500.0,0.00026121,2]
[312010266,1705546239314,-500.0,0.00026121,2]
[312010268,1705546239324,-500.0,0.00026121,2]
[312010270,1705546239333,-500.0,0.00026121,2]
[312010272,1705546239342,-159.47934842,0.00026121,2]
[312010274,1705546239353,-500.0,0.00026121,2]
[312010276,1705546239362,-500.0,0.00026121,2]
[312010278,1705546239371,-500.0,0.00026121,2]
[312010280,1705546239380,-500.0,0.00026121,2]
[312010282,1705546239389,-196.64155206,0.00026121,2]
[312010284,1705546239399,-500.0,0.00026121,2]
[312010286,1705546239408,-500.0,0.00026121,2]
[312010288,1705546239417,-500.0,0.00026121,2]
[312010290,1705546239426,-554.71893696,0.00026121,2]
[312010292,1705546239435,-400.0,0.00026121,2]
[312010294,1705546239444,-500.0,0.00026121,2]
[312010296,1705546239453,-500.0,0.00026121,2]
[312010298,1705546239462,-325.03428291,0.00026121,2]
[312010300,1705546239471,-500.0,0.00026121,2]
[312010302,1705546239481,-500.0,0.00026121,2]
[312010304,1705546239490,-500.0,0.00026121,2]
[312010306,1705546239500,-500.0,0.00026121,2]
[312010308,1705546239509,-500.0,0.00026121,2]
[312010310,1705546239519,-500.0,0.00026121,2]
[312010312,1705546239529,-500.0,0.00026121,2]
[312010314,1705546239538,-500.0,0.00026121,2]
[312010316,1705546239548,-500.0,0.00026121,2]
[312010318,1705546239557,-500.0,0.00026121,2]
[312010327,1705546239635,-500.0,0.00026121,2]
[312010330,1705546239644,-500.0,0.00026121,2]
[312010332,1705546239654,-500.0,0.00026121,2]
[312010334,1705546239663,-500.0,0.00026121,2]
[312010336,1705546239672,-500.0,0.00026121,2]
[312010338,1705546239682,-500.0,0.00026121,2]
[312010340,1705546239691,-500.0,0.00026121,2]
[312010342,1705546239700,-500.0,0.00026121,2]
[312010344,1705546239709,-500.0,0.00026121,2]
[312010346,1705546239718,-500.0,0.00026121,2]
[312010348,1705546239727,-500.0,0.00026121,2]
[312010350,1705546239737,-500.0,0.00026121,2]
[312010352,1705546239746,-500.0,0.00026121,2]
[312010354,1705546239756,-500.0,0.00026121,2]
[312010355,1705546239765,-500.0,0.00026121,2]
[312010358,1705546239774,-500.0,0.00026121,2]
[312010360,1705546239783,-500.0,0.00026121,2]
[312010361,1705546239793,-500.0,0.00026121,2]
[312010363,1705546239802,-500.0,0.00026121,2]
[312010366,1705546239812,-366.12949308,0.00026121,2]
[312010367,1705546239823,-81263.62769348,0.00026124,2]
[312010369,1705546239832,-200.0,0.00026135,15]
[312010372,1705546239841,-348.0,0.00026135,15]
[312010373,1705546239854,-50000.0,0.00026158,2]
[312010376,1705546239863,-506.75964119,0.00026182,2]
[312010377,1705546239873,-441.58419443,0.00026224,4]
[312010380,1705546239883,-500.0,0.00026224,4]
[312010382,1705546239892,-500.0,0.00026224,4]
[312010384,1705546239902,-500.0,0.00026224,4]
[312010386,1705546239910,-500.0,0.00026224,4]
[312010388,1705546239920,-500.0,0.00026224,4]
[312010390,1705546239928,-500.0,0.00026224,4]
[312010392,1705546239938,-500.0,0.00026224,4]
[312010394,1705546239947,-595.10858645,0.00026224,4]
[312010396,1705546239956,-500.0,0.00026224,4]
[312010397,1705546239965,-500.0,0.00026224,4]
[312010400,1705546239975,-500.0,0.00026224,4]
[312010402,1705546239984,-500.0,0.00026224,4]
[312010404,1705546239993,-500.0,0.00026224,4]
[312010406,1705546240002,-500.0,0.00026224,4]
[312010408,1705546240011,-500.0,0.00026224,4]
[312010411,1705546240020,-285.5184804,0.00026224,4]
[312010413,1705546240029,-500.0,0.00026224,4]
[312010417,1705546240039,-500.0,0.00026224,4]
[312010420,1705546240049,-500.0,0.00026224,4]
[312010423,1705546240059,-567.00580376,0.00026224,4]
[312010426,1705546240071,-500.0,0.00026224,4]
[312010428,1705546240081,-500.0,0.00026224,4]
[312010430,1705546240090,-500.0,0.00026224,4]
[312010432,1705546240101,-500.0,0.00026224,4]
[312010434,1705546240111,-500.0,0.00026224,4]
[312010435,1705546240120,-500.0,0.00026224,4]
[312010438,1705546240130,-500.0,0.00026224,4]
[312010440,1705546240140,-500.0,0.00026224,4]
[312010441,1705546240149,-500.0,0.00026224,4]
[312010444,1705546240159,-500.0,0.00026224,4]
[312010446,1705546240168,-500.0,0.00026224,4]
[312010448,1705546240177,-500.0,0.00026224,4]
[312010449,1705546240186,-238.41130388,0.00026224,4]
[312010452,1705546240195,-273.60483414,0.00026224,4]
[312010454,1705546240204,-500.0,0.00026224,4]
[312010455,1705546240214,-500.0,0.00026224,4]
[312010457,1705546240224,-500.0,0.00026224,4]
[312010460,1705546240233,-500.0,0.00026224,4]
[312010462,1705546240243,-500.0,0.00026224,4]
[312010464,1705546240253,-500.0,0.00026224,4]
[312010466,1705546240262,-500.0,0.00026224,4]
[312010468,1705546240271,-500.0,0.00026224,4]
[312010470,1705546240279,-500.0,0.00026224,4]
[312010471,1705546240288,-500.0,0.00026224,4]
[312010473,1705546240297,-500.0,0.00026224,4]
[312010475,1705546240307,-50000.0,0.00026226,2]
[312010477,1705546240316,-50000.0,0.00026243,2]
[312010479,1705546240326,-50000.0,0.00026294,2]
[312010481,1705546240335,-50000.0,0.00026362,2]
[312010483,1705546240344,-50000.0,0.00026362,2]
[312010485,1705546240357,-53900.0,0.00026362,2]
[312010487,1705546240366,-694.83235173,0.000264,2]
[312010489,1705546240375,-315.411734,0.00026732,2]
[312010491,1705546240384,-150.95004265,0.00027397,7]
[312010493,1705546240393,-10169.21,0.00027397,3]
[312010495,1705546240403,-8474.35,0.00027397,3]
[312010498,1705546240413,-7061.95,0.00027397,3]
[312010500,1705546240422,-261.3528024,0.000274,2]
[312010502,1705546240430,-3318.9973618,0.000275,2]
[312010503,1705546240439,-242.743,0.00027714,2]
[312010506,1705546240448,-162.0,0.00027714,2]
[312010508,1705546240458,-202.416,0.00027714,2]
[312010509,1705546240467,-623.74161759,0.0002772,2]
[312010512,1705546240477,-290.00241025,0.00028,2]
[312010514,1705546240486,-154.9690062,0.00028,2]
[312010516,1705546240495,-154.9690062,0.00028,10]
[312010518,1705546240504,-305.46439516,0.00028,2]
[312010520,1705546240513,-345.5207472,0.00028,2]
[312010522,1705546240522,-5182.53798117,0.00028161,5]
[312010524,1705546240531,-151.0,0.00028219,2]
[312010525,1705546240540,-13037.38221558,0.0002862,2]
[312010528,1705546240550,-200.0,0.00028749,15]
[312010530,1705546240558,-200.0,0.00028749,15]
[312010532,1705546240568,-368.0,0.00028749,15]
[312010533,1705546240577,-328.823727,0.00028767,2]
[312010535,1705546240586,-642.395033,0.00028767,2]
[312010537,1705546240595,-722.46780766,0.00028911,2]
[312010539,1705546240607,-722.46780766,0.00028911,2]
[312010542,1705546240616,-722.46780766,0.00028911,2]
[312010543,1705546240628,-722.46780766,0.00028911,2]
[312010545,1705546240637,-722.46780766,0.00028911,2]
[312010547,1705546240646,-722.46780766,0.00028911,2]
[312010549,1705546240655,-722.46780766,0.00028911,2]
[312010551,1705546240664,-722.46780766,0.00028911,2]
[312010553,1705546240673,-722.46780766,0.00028911,2]
[312010555,1705546240683,-722.46780766,0.00028911,2]
[312010557,1705546240692,-5000.0,0.00028929,5]
[312010559,1705546240701,-154.9690062,0.00029,2]
[312010561,1705546240710,-2455.73923901,0.00029,2]
[312010563,1705546240719,-153.23014305,0.00029002,2]
[312010565,1705546240728,-151.0,0.00029042,2]
[312010567,1705546240737,-620.18708088,0.00029106,2]
[312010569,1705546240746,-154.81467579,0.0002914,2]
[312010571,1705546240755,-5488.92,0.00029178,2]
[312010573,1705546240764,-5488.92,0.00029178,2]
[312010575,1705546240773,-5488.92,0.00029178,2]
[312010577,1705546240782,-5488.92,0.00029178,2]
[312010579,1705546240791,-5488.92,0.00029178,2]
[312010581,1705546240800,-5488.92,0.00029178,2]
[312010583,1705546240809,-5488.92,0.00029178,2]
[312010585,1705546240818,-5488.92,0.00029178,2]
[312010587,1705546240827,-5488.92,0.00029178,2]
[312010589,1705546240837,-5488.92,0.00029178,2]
[312010592,1705546240847,-50912.68990587,0.00029181,5]
[312010593,1705546240857,-231.9716211,0.00029204,2]
[312010595,1705546240866,-213.00013457,0.000295,30]
[312010598,1705546240875,-1500.0,0.000295,2]
[312010600,1705546240884,-5352.87924952,0.00029581,2]
[312010601,1705546240895,-2336.01776262,0.00029581,2]
[312010604,1705546240905,-3297.24098296,0.00029581,2]
[312010605,1705546240914,-33119.89609229,0.00029597,2]
[312010608,1705546240923,-328.823727,0.00029687,2]
[312010609,1705546240933,-642.395033,0.00029687,2]
[312010612,1705546240942,-5000.0,0.00029697,5]
[312010613,1705546240951,-153.23014305,0.00029783,2]
[312010615,1705546240961,-151.0,0.00029865,2]
[312010617,1705546240970,-640.81580837,0.0003,4]
[312010620,1705546240981,-201.08171049,0.0003,4]
[312010622,1705546240990,-154.9690062,0.0003,2]
[312010623,1705546240999,-243.91959085,0.0003,4]
[312010625,1705546241009,-682.23213824,0.0003,3]
[312010627,1705546241018,-195.1690538,0.0003,4]
[312010630,1705546241028,-154.9690062,0.0003,2]
[312010632,1705546241037,-650.89335401,0.0003,4]
[312010634,1705546241048,-687.89788967,0.0003,4]
[312010635,1705546241058,-365.41158393,0.0003,4]
[312010637,1705546241069,-283.01176432,0.0003,3]
[312010640,1705546241081,-154.9690062,0.0003,4]
[312010641,1705546241091,-1908.4624749,0.0003,2]
[312010643,1705546241103,-241.0,0.0003,2]
[312010645,1705546241114,-153.23014305,0.00030064,7]
[312010648,1705546241124,-1761.29,0.00030136,2]
[312010649,1705546241134,-153.0,0.00030137,2]
[312010652,1705546241145,-153.0,0.00030137,2]
[312010654,1705546241154,-198.9993253,0.00030137,2]
[312010662,1705546241219,-7947.40197811,0.00030209,7]
[312010664,1705546241234,-153.23014305,0.00030261,7]
[312010666,1705546241243,-153.23014305,0.00030302,7]
[312010668,1705546241252,-231.9716211,0.00030357,7]
[312010671,1705546241262,-8302.83052172,0.000304,2]
[312010672,1705546241271,-1761.29,0.0003041,2]
[312010674,1705546241281,-5000.0,0.00030464,7]
[312010677,1705546241291,-231.9716211,0.00030464,7]
[312010678,1705546241301,-1500.0,0.000305,2]
[312010680,1705546241311,-620.00935404,0.00030561,2]
[312010682,1705546241322,-50000.0,0.00030591,7]
[312010684,1705546241332,-328.823727,0.00030607,2]
[312010686,1705546241345,-642.395033,0.00030607,2]
[312010688,1705546241357,-210.0,0.0003066,30]
[312010691,1705546241368,-606.0,0.0003066,30]
[312010692,1705546241378,-210.0,0.0003067,30]
[312010694,1705546241390,-606.0,0.0003067,30]
[312010697,1705546241399,-210.0,0.0003068,30]
[312010699,1705546241409,-606.0,0.0003068,30]
[312010701,1705546241417,-1761.29,0.00030684,2]
[312010703,1705546241426,-151.0,0.00030688,2]